Cogmind - Beta 9.6 @@@ ROGUE MODE // 2020.09.14 @ 12:13:42 // Winter2019/RPGLIKE Player: Hermelin Result: Destroyed by as-18143 with Assembled Blade Performance ------------- Evolutions (0) 0 Regions Visited (0) 0 Robots Destroyed (10) 50 Value Destroyed (21) 21 Prototype IDs (0) 0 Alien Tech Used (0) 0 Bonus (0) 0 TOTAL SCORE: 71 Bonus ------- None Cogmind --------- Core Integrity 0/600 Matter 270/300 Energy 125/125 System Corruption 0% Temperature Cool (0) Movement Treading (160) Location -11/Scrapyard Parts ------- > --- POWER (1) -------- Light Ion Engine > --- PROPULSION (2) --- Light Treads Wheel > --- UTILITY (2) ------ Improved Terrain Scanner Seismic Analyzer > --- WEAPON (2) ------- Light Assault Rifle > --- INVENTORY (2) ---- Light Treads Medium Laser Peak State ------------ > --- POWER ------------ Light Ion Engine > --- PROPULSION ------- Light Treads Light Treads > --- UTILITY ---------- Improved Terrain Scanner Seismic Analyzer > --- WEAPON ----------- Medium Laser Light Assault Rifle > --- INVENTORY -------- Wheel Medium Laser [Rating: 8] Favorites ----------- Power Light Ion Engine Engine Light Ion Engine Propulsion Light Treads Treads Light Treads Wheel Wheel Utility Improved Terrain Scanner Device Improved Terrain Scanner Processor Seismic Analyzer Weapon Medium Laser Energy Gun Medium Laser Ballistic Gun Light Assault Rifle Build | -11 ------- Run | Scr Slots Evolved 3 | 3 Power . | . Propulsion 1 | 1 Utility 1 | 1 Weapon 1 | 1 Parts Attached 9 | 9 Power 1 | 1 Engine 1 | 1 Core . | . Reactor . | . Propulsion 3 | 3 Treads 2 | 2 Leg . | . Wheel 1 | 1 Hover . | . Flight . | . Utility 2 | 2 Device 1 | 1 Storage . | . Processor 1 | 1 Hackware . | . Protection . | . Artifact . | . Weapon 3 | 3 Energy Gun 2 | 2 Energy Cannon . | . Ballistic Gun 1 | 1 Ballistic Cannon . | . Launcher . | . Special Weapon . | . Impact Weapon . | . Slashing Weapon . | . Piercing Weapon . | . Special Melee Weapon . | . Unidentified Prototypes . | . Parts Lost . | . Power . | . Propulsion . | . Utility . | . Weapon . | . Highest Loss Streak . | . Average Slot Usage (%) . | . Naked Turns . | . Heaviest Build 7 | 7 Greatest Support 40 | 40 Greatest Overweight (x) . | . Average Overweight (x) . | . Largest Inventory Capacity 2 | 2 Average Capacity 1 | 1 Most Carried 2 | 2 Average Carried 1 | 1 Final Capacity 2 | 2 Final Carried 2 | 2 Class Distribution -------------------- None Dominant Class ---------------- None Resources | -11 ----------- Run | Scr Matter Collected 302 | 302 Remotely . | . Salvage Created 170 | 170 Parts 9 | 9 Haulers Intercepted . | . Recyclers Shooed 1 | 1 Parts Field Recycled . | . Retrieved Matter . | . Parts Self-Destructed . | . Prevented . | . Kills | -11 ------- Run | Scr Combat Hostiles Destroyed 6 | 6 Guns 6 | 6 Classes Destroyed 4 | 4 Worker 1 | 1 Tunneler 2 | 2 Recycler 1 | 1 Assembled 6 | 6 Best Kill Streak 6 | 6 Combat Bots Only 6 | 6 Max Kills in Single Turn 2 | 2 Gunslinging . | . Exploded . | . Melee . | . Uniques/NPCs Destroyed . | . Combat | -11 -------- Run | Scr Damage Taken 803 | 803 Core 652 | 652 Absorbed by Shields . | . Redirected to Core 558 | 558 Core Remaining (%) . | . Volleys Fired 42 | 42 Largest 2 | 2 Hottest 70 | 70 Shots Fired 81 | 81 Gun 81 | 81 Cannon . | . Launcher . | . Special . | . Kinetic 42 | 42 Thermal 39 | 39 Explosive . | . Electromagnetic . | . Robot Hit Streak 9 | 9 Robot Miss Streak 4 | 4 Penetration Max . | . Secondary Targets 4 | 4 Max Gunslinging Chain 1 | 1 Shots Hit Robots 49 | 49 Core Hits 24 | 24 Critical Hits . | . Critical Kills . | . Critical Parts Destroyed . | . Melee Attacks . | . Impact . | . Slashing . | . Piercing . | . Sneak Attacks . | . Combat Hostiles . | . Follow-up Attacks . | . Damage Inflicted 515 | 515 Guns 515 | 515 Cannons . | . Explosions . | . Melee . | . Ramming . | . Kinetic 166 | 166 Thermal 349 | 349 Explosive . | . Electromagnetic . | . Impact . | . Slashing . | . Piercing . | . Highest Corruption . | . Average Corruption . | . Corruption Purged . | . Overload Shots . | . Overflow Damage . | . Projectiles . | . Explosions . | . Melee . | . Knockbacks . | . Impact . | . Kinetic . | . Secondary . | . Self-Inflicted Damage . | . Shots . | . Rammed . | . Targets Rammed . | . Kicked . | . Crushed . | . Highest Temperature 36 | 36 Average Temperature 16 | 16 Received Heat Transfer . | . Siege Activations . | . Robots Corrupted . | . Combat Hostiles . | . Parts Fried . | . Impact Corruptions . | . Robots Melted . | . Combat Hostiles . | . Parts Melted . | . Heat Transferred 1036 | 1036 Parts Sabotaged . | . Parts Stolen . | . Parts Stripped . | . Power Chain Reactions . | . Missiles Intercepted . | . Alert | -11 ------- Run | Scr Peak Influence 30 | 30 Average Influence 1 | 1 Maximum Alert Level . | . Low Security (%) 100 | 100 Level 1 . | . Level 2 . | . Level 3 . | . Level 4 . | . Level 5 . | . High Security . | . Max Security . | . Squads Dispatched . | . Investigation . | . Extermination . | . Reinforcement . | . Assault . | . Garrison . | . Intercept . | . Construction Impeded . | . Haulers Reinforced . | . Stealth | -11 --------- Run | Scr Distress Signals . | . Communications Jammed . | . Distress Signals . | . Times Spotted 8 | 8 Peak Tracking Total 4 | 4 Tactical Retreats . | . Traps | -11 ------- Run | Scr Traps Triggered . | . Indirectly . | . Trap Hack Attempts . | . Triggered . | . Disarmed . | . Reprogrammed . | . Reused . | . Traps Extracted . | . Installed . | . Triggered . | . Machines | -11 ---------- Run | Scr Machines Disabled . | . Max in Single Turn . | . Machines Sabotaged . | . Garrisons Compromised . | . Overloaded Fab Kills . | . Fab Network Shutdowns . | . Hacking | -11 --------- Run | Scr Machines Accessed . | . Terminals . | . Fabricators . | . Repair Stations . | . Recycling Units . | . Scanalyzers . | . Garrison Access . | . Total Hacks . | . Successful . | . Failed . | . Catastrophic . | . Database Lockouts . | . Manual . | . Terminals . | . Fabricators . | . Repair Stations . | . Recycling Units . | . Scanalyzers . | . Garrison Access . | . Terminal Hacks . | . Fabricator Hacks . | . Repair Station Hacks . | . Recycling Unit Hacks . | . Scanalyzer . | . Garrison Access Hacks . | . Unauthorized Hacks . | . Terminals . | . Fabricators . | . Repair Stations . | . Recycling Units . | . Scanalyzers . | . Garrison Access . | . Data Cores Recovered . | . Used . | . Hacking Detections . | . Full Trace Events . | . Feedback Events . | . Feedback Blocked . | . Robot Schematics Acquired . | . Robots Built . | . Matter . | . Time . | . Total Robot Build Rating . | . Part Schematics Acquired . | . Parts Built . | . Matter . | . Time . | . Total Part Build Rating . | . Parts Repaired . | . Time . | . Parts Recycled . | . Recycled Matter . | . Retrieved Matter . | . Retrieved Components . | . Parts Scanalyzed . | . Part Schematics Acquired . | . Parts Damaged . | . Bothacking | -11 ------------ Run | Scr Used RIF Installer . | . Robots Hacked . | . Non-combat . | . Combat . | . Robot Hacks Applied . | . Relay Couplers Released . | . Robots Rewired . | . Allies Hacked . | . Hacks Repelled . | . Allies | -11 -------- Run | Scr Total Allies . | . Largest Group . | . Highest-Rated Group . | . Highest-Rated Ally . | . Total Orders . | . Ally Attacks . | . Total Damage . | . Kills . | . Allies Corrupted . | . Allies Melted . | . Intel | -11 ------- Run | Scr Robot Analysis Total . | . Derelict Logs Recovered . | . Drone Launches . | . Drone Recoveries . | . Exploration | -11 ------------- Run | Scr Turns Passed 7020 | 7020 Spaces Moved 1278 | 1278 Core 5 | 5 Treads 281 | 281 Legs . | . Wheels 992 | 992 Hover . | . Flight . | . Fastest Speed 50 | 50 Average Speed 97 | 97 Slowest Speed 160 | 160 Overloaded Moves . | . Propulsion Burnouts . | . Robots Hopped . | . Cave-ins Triggered . | . Exploration Rate (%) 118 | 118 Regions Visited . Branch Regions . Pre-discovered Areas . | . Known Exits Taken . | . Unknown Exits Taken . | . Scrap Searched . | . Spaces Dug . | . Terrain Destroyed . | . Melee . | . Projectile . | . AOE . | . Actions | -11 --------- Run | Scr Total 6975 | 6975 Wait 5642 | 5642 Move 1278 | 1278 Hop . | . Pick Up 2 | 2 Fast Attach 8 | 8 Attach . | . Detach . | . Swap 1 | 1 Drop . | . Fire 42 | 42 Melee . | . Ram . | . Kick . | . Crush . | . Escape Stasis . | . Rewire . | . Trap . | . Miscellaneous 2 | 2 Route ------- -11/Scrapyard (discovered 1 exit: [*Mat]) History --------- Turn | Location | Event 10 | -11/Scrapyard | Upgraded with Propulsion slot (x1) 10 | -11/Scrapyard | Upgraded with Utility slot (x1) 10 | -11/Scrapyard | Upgraded with Weapon slot (x1) 15 | -11/Scrapyard | Discovered new exit (range 16) 6781 | -11/Scrapyard | Assembled infested the area 6957 | -11/Scrapyard | Core integrity fell below 50% 7001 | -11/Scrapyard | Core integrity fell below 20% 7021 | -11/Scrapyard | Destroyed by as-18143 with Assembled Blade Last Messages --------------- 04038_ Acquired 10 matter. 05016_ T-07 Excavator is excavating. 06781_ ALERT: Infestation in the scrapyard, dispatching Demolisher response squad. 06929_ as-51706 destroyed. 06935_ as-36003 destroyed. 06935_ Switching to secondary target: as-86594. 06940_ as-86594 destroyed. 06940_ Switching to secondary target: as-31108. 06957_ as-31108 destroyed. 06960_ Acquired 13 matter. 06963_ Used Protomatter to restore core integrity (+36, depleted) 06976_ as-83983 destroyed. 06976_ Switching to secondary target: as-17791. 06990_ as-17791 destroyed. 06990_ Switching to secondary target: as-00509. 07002_ Med. Laser severed. 07006_ Destroyed Asb. Hover Unit. 07009_ Acquired Med. Laser. 07019_ Med. Laser severed. Map ----- +----------------------------------------------------+ | ###### # ################## # | | ## # ################## # # | | ## # ################## # ## | | ## # ################## ######## | | ## # ############### ##### | | ## # ## #####% ##### | | ######### ## ## ** ##### ##### | | ########## ### ### *= ##### | | = *| | | == %= | ### ### | | ########## ### ### =% ##### < # | | ############# # ##### % # | | ############# # ############## | | ############# #### ################# | | ############# #### ################# | | ############# #### ################# | | ############# #### ####################### | | ################# #### ##################### | | #?############### #### % | | ################# #### | | ######################### ########## ########## | | ################## # # # ##### | | ?#?##?############ #%a# # ### | | ??#??############ % %% # ## | | ###??####??####### #a # # ## | | ??????????######## #@ # # ## | | ??????????######## # # ## | | ?????????????############ ################### | | ???????????#### # # ##### | | ?????????#?#### # %# ##### | | ?????????###### ##### | | ???????######## # # ######### | | ??????######### # # ####### | | ?????########## # ####### | | ????########### # ##################### | | ???############ # ##################### | | ???####?################# ##################### | | ??############## ##################### | | ??############## # ####################### | | ?############### # | | ?############### # | | ?############### ###### ###### ############ | | ?############### #### # ##### | | ??############## #### # ##### | | ################ #### # ##### | | ?#################### #### # ##### | | ?########################### # ##### | | ?########################### # ##### | | ?################################## ###### | | ?################################## ###### | +----------------------------------------------------+ Best States ------------- Heat Dissipation 31 Energy Generation 10 Energy Capacity 125 Matter Stores 300 Matter Capacity 300 Sight Range 17 Terrain Scan Range 16 Terrain Scan Density 260 Evasion (%) 44 Recoil Reduction 2 Offensive Hacking 5 Defensive Hacking 5 Item Schematics ----------------- None Robot Schematics ------------------ None Fabricated ------------ Nothing Alien Tech Used ----------------- None Achievements -------------- None Challenges ------------ None RPGLIKE | -11 --------- Run | Scr Levels Raised . | . XP Earned 3000 | 3000 XP Spent 2940 | 2940 Upgrades 11 | 11 Propulsion Slot 1 | 1 Utility Slot 1 | 1 Weapon Slot 1 | 1 Heat Dissipation 1 | 1 Inventory Capacity 2 | 2 Sight Range 1 | 1 Terrain Scan Density 2 | 2 Hack Attack % 1 | 1 Hack Defense % 1 | 1 Protomatter Created 64 | 64 Integrity Restored 36 | 36 Core 36 | 36 Protomatter Decayed 85 | 85 Game ------ Seed SpikedEtherialJammer Manual? 0 Play Time 00:18:54 Cumulative 231.3 hours Start 2020.09.14 @ 12:02:34 End 2020.09.14 @ 12:13:42 Sessions 0 Manual Loads 0 Difficulty Rogue Special Mode Winter2019/RPGLIKE Game No. 97 Rogue 97 Adventurer 0 Explorer 0 Win Type - Total 3 Types 2/0/0/1/0/0/0 Lore% 85 Gallery% 83 Achievement% 69 Wizard Run 0 Options --------- ASCII 0 Keyboard 0 Movement Numpad Keybinds 0 Fullscreen 1 Font 18/SmallcapsGlow Map View 76x50 Tactical HUD 1 Map Filters NONE Filters NONE Steam 1 RUN: 81f8d443-d292-4b50-92b5-2c89e6844d9f